bitfinex/quotes_BTCUSD_20251004
["timestamp","ask_amount","ask_price","bid_price","bid_amount"]
[1759568371520,0.16357242,122270.0,122260.0,0.05382681]
[1759568371721,0.16667242,122270.0,122260.0,0.05382681]
[1759568371950,0.16877242,122270.0,122260.0,0.05382681]
[1759568372152,0.19331708,122270.0,122260.0,0.05382681]
[1759568372778,0.19431708,122270.0,122260.0,0.05482681]
[1759568372961,0.19631708,122270.0,122260.0,0.05482681]
[1759568375191,0.19111708,122270.0,122260.0,0.05683681]
[1759568375404,0.2536834,122270.0,122260.0,0.06005681]
[1759568375613,0.2557834,122270.0,122260.0,0.05683681]
[1759568375824,0.2588834,122270.0,122260.0,0.05482681]
[1759568377789,0.19631708,122270.0,122260.0,0.05482681]
[1759568381572,0.19631708,122270.0,122260.0,0.11362834]
[1759568382532,0.19631708,122270.0,122260.0,0.27721414]
[1759568382749,0.19631708,122270.0,122260.0,0.27922414]
[1759568382938,0.19631708,122270.0,122260.0,0.27721414]
[1759568383791,0.03274466,122270.0,122260.0,0.27721414]
[1759568384631,0.19631708,122270.0,122260.0,0.27721414]
[1759568385793,0.17177242,122270.0,122260.0,0.27721414]
[1759568389453,0.17177242,122270.0,122260.0,0.27922414]
[1759568389646,0.17177242,122270.0,122260.0,0.27721414]
[1759568397507,0.0082,122270.0,122260.0,0.27721414]
[1759568404234,0.0082,122270.0,122260.0,0.27925414]
[1759568404696,0.0051,122270.0,122260.0,0.27925414]
[1759568405160,0.00812,122270.0,122260.0,0.27721414]
[1759568405592,0.03266464,122270.0,122260.0,0.27721414]
[1759568412036,0.02964464,122270.0,122260.0,0.27925414]
[1759568412238,0.003,122270.0,122260.0,0.28235414]
[1759568417745,0.003,122270.0,122260.0,0.22355261]
[1759568418990,0.003,122270.0,122260.0,0.28240027]
[1759568428287,0.003,122270.0,122260.0,0.29711218]
[1759568428889,0.003,122270.0,122260.0,0.32165297]
[1759568437743,0.00289164,122270.0,122260.0,0.32165297]
[1759568438236,0.00289164,122270.0,122260.0,0.74477503]
[1759568438453,0.00037258,122270.0,122260.0,0.67121546]
[1759568442275,0.00037258,122270.0,122260.0,0.7446128]
[1759568442918,0.00037258,122270.0,122260.0,0.67121546]
[1759568444143,0.00037258,122270.0,122260.0,0.74459892]
[1759568444340,0.00037258,122270.0,122260.0,0.67121546]
[1759568448324,4.824e-05,122270.0,122260.0,0.67121546]
[1759568456569,4.824e-05,122270.0,122260.0,0.77419887]
[1759568456985,4.824e-05,122270.0,122260.0,0.7973786]
[1759568458424,6.16e-06,122270.0,122260.0,0.7973786]
[1759568468290,2.677e-05,122280.0,122270.0,0.16357242]
[1759568468528,2.677e-05,122280.0,122270.0,0.60422242]
[1759568468704,2.677e-05,122280.0,122270.0,0.60625242]
[1759568469082,2.677e-05,122280.0,122270.0,0.63079068]
[1759568469490,0.00402677,122280.0,122270.0,0.63179068]
[1759568469901,0.00802677,122280.0,122270.0,0.63179068]
[1759568470145,0.01010677,122280.0,122270.0,0.62859068]
[1759568470288,0.01326677,122280.0,122270.0,0.62656068]
[1759568470757,0.01010677,122280.0,122270.0,0.62859068]
[1759568470958,0.00802677,122280.0,122270.0,0.62859068]
[1759568471171,0.00802677,122280.0,122270.0,0.63179068]
[1759568472037,0.01010677,122280.0,122270.0,0.62656068]
[1759568472223,0.01010677,122280.0,122270.0,0.62859068]
[1759568472633,0.00802677,122280.0,122270.0,0.62859068]
[1759568473074,0.00802677,122280.0,122270.0,0.63179068]
[1759568475591,0.00802677,122280.0,122270.0,0.62859068]
[1759568475846,0.00802677,122280.0,122270.0,0.63179068]
[1759568478079,0.01326677,122280.0,122270.0,0.62656068]
[1759568478280,0.00169683,122280.0,122270.0,0.62656068]
[1759568478482,0.08288209,122300.0,122280.0,0.16355331]
[1759568478638,0.08288209,122300.0,122290.0,0.0588358]
[1759568479041,0.08496209,122300.0,122290.0,0.0588358]
[1759568479245,0.01846444,122300.0,122290.0,0.0588358]
[1759568479636,0.02546444,122300.0,122290.0,0.0588358]
[1759568479853,0.03246444,122300.0,122290.0,0.0588358]
[1759568480089,0.02546444,122300.0,122290.0,0.0588358]
[1759568480235,0.03162444,122300.0,122290.0,0.0608358]
[1759568480441,0.04062444,122300.0,122290.0,0.0608358]
[1759568488440,0.04062444,122300.0,122290.0,0.07483432]
[1759568488894,0.04103195,122300.0,122290.0,0.07483432]
[1759568491083,0.04103195,122300.0,122290.0,0.24040999]
[1759568491084,0.03579195,122300.0,122290.0,0.24040999]
[1759568491276,0.01948795,122300.0,122290.0,0.24335999]
[1759568491679,0.01948795,122300.0,122290.0,0.18452419]
[1759568492117,0.00048795,122300.0,122290.0,0.18252419]
[1759568492521,0.00348795,122300.0,122290.0,0.18352419]
[1759568494682,0.00348795,122300.0,122290.0,0.25706894]
[1759568495122,0.00348795,122300.0,122290.0,0.22833229]
[1759568498595,0.00348795,122300.0,122290.0,0.24285548]
[1759568500406,0.00348795,122300.0,122290.0,0.18404886]
[1759568503807,0.00563795,122300.0,122290.0,0.16657567]
[1759568504173,0.00881795,122300.0,122290.0,0.001]
[1759568504617,0.00881795,122300.0,122290.0,0.16454567]
[1759568505029,0.00881795,122300.0,122290.0,0.22335229]
[1759568506425,0.00881795,122300.0,122290.0,0.24788908]
[1759568508571,0.00881795,122300.0,122290.0,0.18908246]
[1759568514340,0.00881795,122300.0,122290.0,0.19111246]
[1759568514590,0.00563795,122300.0,122290.0,0.19111246]
[1759568515052,0.00881795,122300.0,122290.0,0.18908246]
[1759568516279,0.00563795,122300.0,122290.0,0.19111246]
[1759568517116,0.00881795,122300.0,122290.0,0.19111246]
[1759568518361,0.00563795,122300.0,122290.0,0.19111246]
[1759568519061,0.00881795,122300.0,122290.0,0.19111246]
[1759568519864,0.00563795,122300.0,122290.0,0.19111246]
[1759568520257,0.00563795,122300.0,122290.0,0.19420246]
[1759568520470,0.00563795,122300.0,122290.0,0.19111246]
[1759568520707,0.00348795,122300.0,122290.0,0.19420246]
[1759568520994,0.00562795,122300.0,122290.0,0.19111246]
[1759568522586,0.00862795,122300.0,122290.0,0.18908246]
[1759568523439,0.00562795,122300.0,122290.0,0.19110246]
[1759568523886,0.00562795,122300.0,122290.0,0.02553679]
[1759568524096,0.00862795,122300.0,122290.0,0.02553679]
[1759568525365,0.00862795,122300.0,122290.0,0.001]
[1759568525573,0.02493195,122300.0,122290.0,0.001]
[1759568530528,0.10805401,122300.0,122290.0,0.001]
[1759568530988,0.13259387,122300.0,122290.0,0.001]
[1759568534391,0.13259387,122300.0,122270.0,0.46262327]
[1759568534597,0.003,122290.0,122270.0,0.46262327]
[1759568534757,0.00214,122280.0,122270.0,0.62617078]
[1759568534922,0.00514,122280.0,122270.0,0.62617078]
[1759568536060,0.00514,122280.0,122270.0,0.63517078]
[1759568536511,0.00514,122280.0,122270.0,0.63017078]
[1759568536778,0.00614,122280.0,122270.0,0.63117078]
[1759568536987,0.00614,122280.0,122270.0,0.63517078]
[1759568537185,0.00614,122280.0,122270.0,0.63719078]
[1759568537895,0.00314,122280.0,122270.0,0.63719078]
[1759568541219,0.00614,122280.0,122270.0,0.63719078]
[1759568543671,0.00314,122280.0,122270.0,0.63719078]
[1759568544509,0.00614,122280.0,122270.0,0.63719078]
[1759568550441,0.00614,122280.0,122270.0,0.63517078]
[1759568552757,0.00614,122280.0,122270.0,0.61063092]
[1759568556650,0.00314,122280.0,122270.0,0.61279092]
[1759568558931,0.00631,122280.0,122270.0,0.61279092]
[1759568560322,0.00314,122280.0,122270.0,0.61575092]
[1759568560570,0.00314,122280.0,122270.0,0.61279092]
[1759568561149,0.00631,122280.0,122270.0,0.61279092]
[1759568562023,0.00314,122280.0,122270.0,0.61279092]
[1759568563512,0.00631,122280.0,122270.0,0.61279092]
[1759568564612,0.00314,122280.0,122270.0,0.61279092]
[1759568565760,0.00631,122280.0,122270.0,0.61279092]
[1759568567340,0.00314,122280.0,122270.0,0.61279092]
[1759568568925,0.00631,122280.0,122270.0,0.61063092]
[1759568574392,0.00631,122280.0,122270.0,0.61279092]
[1759568574607,0.00314,122280.0,122270.0,0.61279092]
[1759568574908,0.00631,122280.0,122270.0,0.61279092]
[1759568575729,0.001,122280.0,122270.0,0.61279092]
[1759568575934,0.001,122280.0,122270.0,0.61575092]
[1759568576129,0.00299,122280.0,122270.0,0.61279092]
[1759568577610,0.001,122280.0,122270.0,0.61575092]
[1759568577807,0.00299,122280.0,122270.0,0.61575092]
[1759568578342,0.00299,122280.0,122270.0,0.61279092]
[1759568578886,0.001,122280.0,122270.0,0.61575092]
[1759568579295,0.00299,122280.0,122270.0,0.61279092]
[1759568580310,0.00299,122280.0,122270.0,0.5988452]
[1759568580496,0.00598,122280.0,122270.0,0.5988452]
[1759568581118,0.00299,122280.0,122270.0,0.5988452]
[1759568582154,0.00598,122280.0,122270.0,0.5988452]
[1759568582370,0.00299,122280.0,122270.0,0.5988452]
[1759568583549,0.00598,122280.0,122270.0,0.62338647]
[1759568583753,0.00598,122280.0,122270.0,0.62125138]
[1759568584402,0.00598,122280.0,122270.0,0.42495907]
[1759568584403,0.08910206,122280.0,122270.0,0.42495907]
[1759568584744,0.10540606,122280.0,122270.0,0.42495907]
[1759568584944,0.32937367,122280.0,122270.0,0.42495907]
[1759568585132,0.31306967,122280.0,122270.0,0.42495907]
[1759568586686,0.33761357,122280.0,122270.0,0.42495907]
[1759568591225,0.60621357,122280.0,122270.0,0.42495907]
[1759568593909,0.60621357,122280.0,122270.0,0.42095907]
[1759568594540,0.33761357,122280.0,122270.0,0.42095907]
[1759568594814,0.33661357,122280.0,122270.0,0.41595907]
[1759568595181,0.33861357,122280.0,122270.0,0.41695907]
[1759568595498,0.34061357,122280.0,122270.0,0.41695907]
[1759568603981,0.36575591,122280.0,122270.0,0.41695907]
[1759568605965,0.36575591,122280.0,122270.0,0.14835907]
[1759568610360,0.34061357,122280.0,122270.0,0.14835907]
[1759568612441,0.33762357,122280.0,122270.0,0.15335907]
[1759568612619,0.33563357,122280.0,122270.0,0.15335907]
[1759568612822,0.33764357,122280.0,122270.0,0.14835907]
[1759568613026,0.34058357,122280.0,122270.0,0.14835907]
[1759568617796,0.34058357,122280.0,122270.0,0.15038907]
[1759568618006,0.33764357,122280.0,122270.0,0.15038907]
[1759568618637,0.34058357,122280.0,122270.0,0.14835907]
[1759568618850,0.34058357,122280.0,122270.0,0.15038907]
[1759568619059,0.34058357,122280.0,122270.0,0.14835907]
[1759568622057,0.31603967,122280.0,122270.0,0.14835907]
[1759568623264,0.31108967,122280.0,122270.0,0.15335907]
[1759568623467,0.31309967,122280.0,122270.0,0.15335907]
[1759568623652,0.31309967,122280.0,122270.0,0.15038907]
[1759568623850,0.58463967,122280.0,122270.0,0.14835907]
[1759568624983,0.58169967,122280.0,122270.0,0.15335907]
[1759568625358,0.58169967,122280.0,122270.0,0.15038907]
[1759568625555,0.58463967,122280.0,122270.0,0.15038907]
[1759568625872,0.58463967,122280.0,122270.0,0.14835907]
[1759568632681,0.58463967,122280.0,122260.0,0.17580482]
[1759568632909,0.58463967,122280.0,122260.0,0.16654877]
[1759568633222,0.58463967,122280.0,122260.0,0.16357877]
[1759568633437,0.58263967,122280.0,122260.0,0.16357877]
[1759568633612,0.58063967,122280.0,122260.0,0.16357877]
[1759568633819,0.58163967,122280.0,122260.0,0.16557877]
[1759568634038,0.58163967,122280.0,122260.0,0.19112403]
[1759568634608,0.58163967,122280.0,122260.0,0.19409403]
[1759568634856,0.58163967,122280.0,122260.0,0.19112403]
[1759568635510,0.58163967,122280.0,122260.0,0.19409403]
[1759568635892,0.58163967,122280.0,122260.0,0.19112403]
[1759568636886,0.00294,122270.0,122260.0,0.19112403]
[1759568637121,0.00495,122270.0,122260.0,0.19112403]
[1759568637291,0.00201,122270.0,122260.0,0.19315403]
[1759568637438,0.00201,122270.0,122260.0,0.19335787]
[1759568637673,0.00201,122270.0,122260.0,0.19235787]
[1759568638086,0.30763697,122280.0,122260.0,0.19432787]
[1759568638313,0.30763697,122280.0,122270.0,0.00297]
[1759568638509,0.30763697,122280.0,122270.0,0.005]
[1759568639889,0.31063697,122280.0,122270.0,0.006]
[1759568640809,0.31163697,122280.0,122270.0,0.006]
[1759568642149,0.08766936,122280.0,122270.0,0.006]
[1759568642517,0.08766936,122280.0,122270.0,0.03054392]
[1759568643557,0.0045473,122280.0,122270.0,0.19411634]
[1759568651455,0.0045473,122280.0,122270.0,0.53411634]
[1759568651663,0.01638444,122300.0,122290.0,0.16354567]
[1759568651664,8.044e-05,122300.0,122290.0,0.16354567]
[1759568651870,8.044e-05,122300.0,122290.0,0.50354567]
[1759568652086,8.044e-05,122300.0,122290.0,0.50878567]
[1759568652283,8.044e-05,122300.0,122290.0,0.52004865]
[1759568652940,8.044e-05,122300.0,122290.0,0.54458404]
[1759568653350,8.044e-05,122300.0,122290.0,0.54658404]
[1759568653570,8.044e-05,122300.0,122290.0,0.54758404]
[1759568654012,8.044e-05,122300.0,122290.0,0.6307061]
[1759568655246,8.044e-05,122300.0,122290.0,0.6297061]
[1759568655755,8.044e-05,122300.0,122290.0,0.6347061]
[1759568655954,8.044e-05,122300.0,122290.0,0.6327061]
[1759568656370,0.00108044,122300.0,122290.0,0.6387061]
[1759568657193,0.00148795,122300.0,122290.0,0.6387061]
[1759568659244,0.06973765,122340.0,122320.0,0.16349388]
[1759568659451,0.15335143,122340.0,122330.0,0.01441266]
[1759568659646,0.15547143,122340.0,122330.0,0.01441266]
[1759568660165,0.15628613,122340.0,122330.0,0.03894476]
[1759568660412,0.08978848,122340.0,122330.0,0.20243695]
[1759568661245,0.09478848,122340.0,122330.0,0.20243695]
[1759568661658,0.09878848,122340.0,122330.0,0.20243695]
[1759568662077,0.09478848,122340.0,122330.0,0.20243695]
[1759568662494,0.09678848,122340.0,122330.0,0.20243695]
[1759568662974,0.10478848,122340.0,122330.0,0.20343695]
[1759568664139,0.10478848,122340.0,122330.0,0.23627988]
[1759568665015,0.10478848,122340.0,122330.0,0.03384293]
[1759568665218,0.10478848,122340.0,122330.0,0.19733512]
[1759568665423,0.10478848,122340.0,122330.0,0.22186722]
[1759568666044,0.10478848,122340.0,122330.0,0.18902429]
[1759568676586,0.12109248,122340.0,122330.0,0.18902429]
[1759568677229,0.10478848,122340.0,122330.0,0.18902429]
[1759568686261,0.10478848,122340.0,122330.0,0.19106429]
[1759568686445,0.10478848,122340.0,122330.0,0.16653219]
[1759568688697,0.10154848,122340.0,122330.0,0.16653219]
[1759568688937,0.09942848,122340.0,122330.0,0.16952219]
[1759568689089,0.01630642,122340.0,122330.0,0.16952219]
[1759568690050,0.00130642,122340.0,122330.0,0.16852219]
[1759568690466,0.00930642,122340.0,122330.0,0.16852219]
[1759568693414,0.00930642,122340.0,122330.0,0.16553219]
[1759568693764,0.00930642,122340.0,122330.0,0.16852219]
[1759568708796,0.00930642,122340.0,122330.0,0.50852219]
[1759568709011,0.00930642,122340.0,122330.0,0.59164425]
[1759568709250,0.00930642,122340.0,122330.0,0.60834825]
[1759568709466,0.00930642,122340.0,122330.0,0.63850015]
[1759568709883,0.00130642,122340.0,122330.0,0.63850015]
[1759568710315,0.00130642,122340.0,122330.0,0.66350015]
[1759568710316,1e-08,122340.0,122330.0,0.66350015]
[1759568710527,1e-08,122340.0,122330.0,0.67150015]
[1759568710947,1e-08,122340.0,122330.0,0.66750015]
[1759568711382,1e-08,122340.0,122330.0,0.67450015]
[1759568711585,1e-08,122340.0,122330.0,0.67050015]
[1759568711793,1e-08,122340.0,122330.0,0.67750015]
[1759568712236,1e-08,122340.0,122330.0,5.44135115]
[1759568715659,0.0004,122360.0,122350.0,0.16346546]
[1759568715890,0.00054746,122360.0,122350.0,0.24658752]
[1759568716271,0.00095467,122360.0,122350.0,0.25176752]
[1759568716480,0.00095467,122360.0,122350.0,0.61628735]
[1759568716890,0.0004,122370.0,122360.0,0.1634521]
[1759568717098,0.0004,122370.0,122360.0,0.24974416]
[1759568717327,0.0004,122370.0,122360.0,0.25175416]
[1759568717520,0.0004,122370.0,122360.0,0.28190606]
[1759568717731,0.0004,122370.0,122360.0,0.62190606]
[1759568717863,0.0004,122370.0,122360.0,5.41075706]
[1759568718077,0.0004,122370.0,122360.0,5.41475706]
[1759568718513,0.0004,122370.0,122360.0,5.41075706]
[1759568718908,0.0034,122370.0,122360.0,5.41075706]
[1759568719525,0.0004,122370.0,122360.0,5.41075706]
[1759568719757,0.0044,122370.0,122360.0,5.41075706]
[1759568719958,0.0044,122370.0,122360.0,5.41415706]
[1759568720771,0.0044,122370.0,122360.0,0.65030606]
[1759568722592,0.00460357,122370.0,122360.0,0.65030606]
[1759568723448,0.00460357,122370.0,122360.0,0.89547606]
[1759568742069,0.00010898,122370.0,122360.0,5.65932706]
[1759568746329,0.00010898,122370.0,122360.0,5.66232706]
[1759568749617,0.00531898,122370.0,122360.0,0.87030606]
[1759568749835,0.00010898,122370.0,122360.0,0.87332606]
[1759568751606,0.00010898,122370.0,122360.0,5.63717706]
[1759568752041,3.19e-06,122370.0,122360.0,5.63717706]
[1759568752480,3.19e-06,122370.0,122360.0,5.66217706]
[1759568760982,0.00212319,122370.0,122360.0,5.63415706]
[1759568761339,3.19e-06,122370.0,122360.0,5.63728706]
[1759568761929,0.0004,122380.0,122370.0,0.16343875]
[1759568762130,0.0004,122380.0,122370.0,0.24969081]
[1759568762306,0.0004,122380.0,122370.0,0.25182081]
[1759568762746,0.0004,122380.0,122370.0,0.27633681]
[1759568762968,0.0034,122380.0,122370.0,0.27633681]
[1759568763338,0.00552,122380.0,122370.0,0.27320681]
[1759568763540,0.00552,122380.0,122370.0,0.27107681]
[1759568763741,0.00861,122380.0,122370.0,0.27107681]
[1759568763948,0.0034,122380.0,122370.0,0.27320681]
[1759568764176,0.0034,122380.0,122370.0,0.27633681]
[1759568766000,0.00861,122380.0,122370.0,0.27107681]
[1759568766213,0.00861,122380.0,122370.0,0.27320681]
[1759568766419,0.0034,122380.0,122370.0,0.27633681]
[1759568766621,0.00552,122380.0,122370.0,0.27107681]
[1759568766823,0.00861,122380.0,122370.0,0.27107681]
[1759568767021,0.00861,122380.0,122370.0,0.27320681]
[1759568767022,0.0034,122380.0,122370.0,0.27320681]
[1759568767221,0.0034,122380.0,122370.0,0.27633681]
[1759568767552,0.00360355,122380.0,122370.0,0.27633681]
[1759568770241,0.00572355,122380.0,122370.0,0.27320681]
[1759568770417,0.00572355,122380.0,122370.0,0.27107681]
[1759568770634,0.00881355,122380.0,122370.0,0.18795475]
[1759568770836,0.00881355,122380.0,122370.0,0.52795475]
[1759568772050,0.00881355,122380.0,122370.0,0.024516]
[1759568772261,0.17223894,122380.0,122370.0,0.18795475]
[1759568773434,0.17223894,122380.0,122370.0,0.024516]
[1759568773793,0.17223894,122380.0,122360.0,0.40957084]
[1759568774051,0.00309,122370.0,122360.0,0.77409219]
[1759568774229,0.00521,122370.0,122360.0,0.77409219]
[1759568774430,0.16864875,122370.0,122360.0,0.77409219]
[1759568775036,0.16864875,122370.0,122360.0,0.77709219]
[1759568775611,0.16864875,122370.0,122360.0,0.77409219]
[1759568776967,0.16864875,122370.0,122360.0,0.77709219]
[1759568779619,0.16864875,122370.0,122360.0,0.24911874]
[1759568780987,0.25777081,122370.0,122360.0,0.24611874]
[1759568781182,0.25977081,122370.0,122360.0,0.24611874]
[1759568798389,0.25977081,122370.0,122360.0,0.04344111]
[1759568808503,0.32901079,122370.0,122360.0,0.04344111]
[1759568808937,0.25977081,122370.0,122360.0,0.04344111]
[1759568819740,0.25668081,122370.0,122360.0,0.04541111]
[1759568820130,0.25456081,122370.0,122360.0,0.04541111]
[1759568820334,0.25456081,122370.0,122360.0,0.04834111]
[1759568821399,0.25659081,122370.0,122360.0,0.04541111]
[1759568821799,0.25456081,122370.0,122360.0,0.04541111]
[1759568822022,0.25659081,122370.0,122360.0,0.04541111]
[1759568822444,0.17143875,122370.0,122360.0,0.06468632]
[1759568823055,0.17143875,122370.0,122360.0,0.09287502]
[1759568823673,0.17346875,122370.0,122360.0,0.07162981]
[1759568824065,0.17143875,122370.0,122360.0,0.07652981]
[1759568824383,0.17143875,122370.0,122360.0,0.07359981]
[1759568824593,0.17346875,122370.0,122360.0,0.07359981]
[1759568824828,0.17346875,122370.0,122360.0,0.07162981]
[1759568825034,0.17647875,122370.0,122360.0,0.07162981]
[1759568826332,0.17143875,122370.0,122360.0,0.25632712]
[1759568826555,0.17143875,122370.0,122360.0,0.23998191]
[1759568830220,0.008,122370.0,122360.0,0.23998191]
[1759568830752,0.008,122370.0,122360.0,0.26450464]
[1759568832577,0.006,122370.0,122360.0,0.26450464]
[1759568833033,0.16402969,122380.0,122370.0,0.16343875]
[1759568833241,0.16402969,122380.0,122370.0,0.16833875]
[1759568835186,0.00060355,122380.0,122370.0,0.16833875]
[1759568835372,0.00860355,122380.0,122370.0,0.16833875]
[1759568839325,0.00860355,122380.0,122370.0,0.1928601]
[1759568844806,0.00860355,122380.0,122370.0,0.5328601]
[1759568845888,0.00660355,122380.0,122370.0,0.5328601]
[1759568846119,0.00060355,122380.0,122370.0,0.5328601]
[1759568847559,0.00360355,122380.0,122370.0,0.5328601]
[1759568868315,0.00869355,122380.0,122370.0,0.5279601]
[1759568869129,0.00568355,122380.0,122370.0,0.5300201]
[1759568869945,0.00360355,122380.0,122370.0,0.5300201]
[1759568870637,0.00869355,122380.0,122370.0,0.5279601]
[1759568872451,0.00869355,122380.0,122370.0,0.5300201]
[1759568874571,0.00869355,122380.0,122370.0,0.5279601]
[1759568876615,0.00869355,122380.0,122370.0,0.1879601]
[1759568876980,0.02499755,122380.0,122370.0,0.1879601]
[1759568880832,0.00360355,122380.0,122370.0,0.1929601]
[1759568883538,0.00575355,122380.0,122370.0,0.1929601]
[1759568883943,0.00575355,122380.0,122370.0,0.1899101]
[1759568886093,0.00575355,122380.0,122370.0,0.1929601]
[1759568886634,0.00575355,122380.0,122370.0,0.1899101]
[1759568894017,0.00360355,122380.0,122370.0,0.1929601]
[1759568895315,0.00575355,122380.0,122370.0,0.1899101]
[1759568897037,0.00575355,122380.0,122370.0,0.1929601]
[1759568898677,0.00360355,122380.0,122370.0,0.1929601]
[1759568903487,0.00575355,122380.0,122370.0,0.1899101]
[1759568906085,0.00575355,122380.0,122370.0,0.1929601]
[1759568907043,0.00575355,122380.0,122370.0,0.1899101]
[1759568910637,0.00575355,122380.0,122370.0,0.1928701]
[1759568911200,0.00360355,122380.0,122370.0,0.1928701]
[1759568911408,0.17218894,122380.0,122370.0,0.1879601]
[1759568911805,0.00876355,122380.0,122370.0,0.1879601]
[1759568917410,0.17218894,122380.0,122370.0,0.1879601]
[1759568921925,0.17218894,122380.0,122370.0,0.16343875]
[1759568922130,0.17218894,122380.0,122370.0,0.18796042]
[1759568925874,0.16343875,122370.0,122360.0,0.04344111]
[1759568926072,0.16868875,122370.0,122360.0,0.04344111]
[1759568927223,0.16868875,122370.0,122360.0,0.04644111]
[1759568927963,0.16868875,122370.0,122360.0,0.06781051]
[1759568928990,0.16868875,122370.0,122360.0,0.23126261]
[1759568929333,0.16868875,122370.0,122360.0,0.22826261]
[1759568929536,0.16868875,122370.0,122360.0,0.23126261]
[1759568929717,0.16868875,122370.0,122360.0,0.20989321]
[1759568930054,0.16868875,122370.0,122360.0,0.20689321]
[1759568930252,0.17068875,122370.0,122360.0,0.20689321]
[1759568931302,0.17668875,122370.0,122360.0,0.20689321]
[1759568940905,0.17668875,122370.0,122360.0,0.04344111]
[1759568944019,0.17668875,122370.0,122360.0,0.20689321]
[1759568945830,0.17143875,122370.0,122360.0,0.20898321]
[1759568946104,0.17143875,122370.0,122360.0,0.21200321]
[1759568946285,0.008,122370.0,122360.0,0.21200321]
[1759568946708,0.17143875,122370.0,122360.0,0.20898321]
[1759568946850,0.17349875,122370.0,122360.0,0.20898321]
[1759568954582,0.01006,122370.0,122360.0,0.20898321]
[1759568954974,0.008,122370.0,122360.0,0.21200321]
[1759568956491,0.002,122370.0,122360.0,0.21200321]
[1759568956643,0.005,122370.0,122360.0,0.21200321]
[1759568956854,0.002,122370.0,122360.0,0.21200321]
[1759568957217,0.1640308,122380.0,122370.0,0.16343875]
[1759568957514,0.1640308,122380.0,122370.0,0.16552875]
[1759568959123,0.1660308,122380.0,122370.0,0.16552875]
[1759568959279,0.00260355,122380.0,122370.0,0.16552875]
[1759568959746,0.01066355,122380.0,122370.0,0.16552875]
[1759568961467,0.01066355,122380.0,122370.0,0.16854875]
[1759568962092,0.00860355,122380.0,122370.0,0.16854875]
[1759568965102,0.00860355,122380.0,122370.0,0.19306944]
[1759568966575,0.00060355,122380.0,122370.0,0.19306944]
[1759568966894,0.00360355,122380.0,122370.0,0.19306944]
[1759569007256,0.00360355,122380.0,122370.0,0.64090944]
[1759569017101,0.003724,122380.0,122370.0,0.64090944]
[1759569028362,0.003724,122380.0,122370.0,1.0640315]
[1759569029353,0.003724,122380.0,122370.0,0.85629482]
[1759569029695,0.003724,122380.0,122370.0,1.02479757]
[1759569031090,0.000724,122380.0,122370.0,1.02479757]
[1759569031460,0.000724,122380.0,122370.0,1.02563757]
[1759569031920,0.000724,122380.0,122370.0,1.02863757]
[1759569032124,0.000724,122380.0,122370.0,1.05878947]
[1759569032547,0.000724,122380.0,122370.0,1.06078947]
[1759569032769,0.000724,122380.0,122370.0,1.06978947]
[1759569057440,9.26e-06,122380.0,122370.0,1.06978947]
[1759569062254,9.26e-06,122380.0,122370.0,1.06894947]
[1759569062458,9.26e-06,122380.0,122370.0,1.06978947]
[1759569067314,0.0004,122390.0,122380.0,0.50342539]
[1759569067521,0.0004,122390.0,122380.0,1.04986745]
[1759569067723,0.0004,122390.0,122380.0,1.05120745]
[1759569067892,0.00060351,122390.0,122380.0,1.05120745]
[1759569068092,0.00060351,122390.0,122380.0,1.05447598]
[1759569068713,0.00060351,122390.0,122380.0,1.05847598]
[1759569070428,0.00060351,122390.0,122380.0,1.06047598]
[1759569076047,0.00060351,122390.0,122380.0,1.05963598]
[1759569076259,0.00060351,122390.0,122380.0,1.06047598]
[1759569077843,0.00572351,122390.0,122380.0,1.05829598]
[1759569078193,0.00060351,122390.0,122380.0,1.05963598]
[1759569078838,0.00060351,122390.0,122380.0,1.06047598]
[1759569080297,0.00060351,122390.0,122380.0,1.05879998]
[1759569081305,0.00060351,122390.0,122380.0,1.05963998]
[1759569081788,0.00060351,122390.0,122380.0,1.05879998]
[1759569082318,0.00060351,122390.0,122380.0,1.05963998]
[1759569085382,0.00060351,122390.0,122380.0,1.05879998]
[1759569087220,0.00259351,122390.0,122380.0,1.05745998]
[1759569087410,0.00572351,122390.0,122380.0,0.97433792]
[1759569089620,0.00572351,122390.0,122380.0,0.79512274]
[1759569089812,0.00572351,122390.0,122380.0,0.95854813]
[1759569094213,0.00572351,122390.0,122380.0,0.79512274]
[1759569094430,0.00572351,122390.0,122380.0,0.47174853]
[1759569094644,0.16913555,122390.0,122380.0,0.46848]
[1759569095484,0.25225761,122390.0,122380.0,0.46448]
[1759569095690,0.29405928,122390.0,122380.0,0.46448]
[1759569095870,0.3351882,122390.0,122380.0,0.46248]
[1759569096109,0.3381882,122390.0,122380.0,0.46248]
[1759569096743,0.3361882,122390.0,122380.0,0.46248]
[1759569096964,0.3471882,122390.0,122380.0,0.46248]
[1759569097143,0.3461882,122390.0,122380.0,0.46248]
[1759569097559,0.3551882,122390.0,122380.0,0.46248]
[1759569098537,0.29678142,122390.0,122380.0,0.46248]
[1759569114107,0.56538142,122390.0,122380.0,0.46248]
[1759569120215,0.29678142,122390.0,122380.0,0.46248]
[1759569121081,0.72488376,122390.0,122380.0,0.46248]
[1759569121553,0.29678142,122390.0,122380.0,0.46248]
[1759569125972,0.56538142,122390.0,122380.0,0.46248]
[1759569129759,0.56225142,122390.0,122380.0,0.46382]
[1759569130188,0.56520142,122390.0,122380.0,0.46248]
[1759569131361,0.29166142,122390.0,122380.0,0.46382]
[1759569132103,0.29166142,122390.0,122380.0,0.47881936]
[1759569132488,0.26713761,122390.0,122380.0,0.47881936]
[1759569132944,0.26713761,122390.0,122380.0,0.46382]
[1759569133375,0.27210761,122390.0,122380.0,0.46248]
[1759569133889,0.26310761,122390.0,122380.0,0.46248]
[1759569134089,0.25210761,122390.0,122380.0,0.46248]
[1759569134306,0.25413761,122390.0,122380.0,0.46382]
[1759569134511,0.26313761,122390.0,122380.0,0.46382]
[1759569134775,0.25613761,122390.0,122380.0,0.46382]
[1759569135111,0.26515761,122390.0,122380.0,0.46382]
[1759569135313,0.26810761,122390.0,122380.0,0.46248]
[1759569137028,0.26515761,122390.0,122380.0,0.46382]
[1759569137617,0.26313761,122390.0,122380.0,0.46382]
[1759569137927,0.53375761,122390.0,122380.0,0.46382]
[1759569138073,0.53670761,122390.0,122380.0,0.46248]
[1759569139128,0.53375761,122390.0,122380.0,0.46382]
[1759569139482,0.53173761,122390.0,122380.0,0.46382]
[1759569140367,0.53670761,122390.0,122380.0,0.46248]
[1759569140755,0.53173761,122390.0,122380.0,0.46382]
[1759569140926,0.53375761,122390.0,122380.0,0.46382]
[1759569141321,0.53670761,122390.0,122380.0,0.46248]
[1759569141534,0.53173761,122390.0,122380.0,0.46382]
[1759569142143,0.53375761,122390.0,122380.0,0.46382]
[1759569142343,0.53173761,122390.0,122380.0,0.46382]
[1759569142854,0.53375761,122390.0,122380.0,0.46382]
[1759569143054,0.53670761,122390.0,122380.0,0.46248]
[1759569143391,0.53173761,122390.0,122380.0,0.46382]